fUSD/lending_fUSD_20240210
["ID","MTS","AMOUNT","RATE_DAILY","PERIOD"]
[313666725,1707558641123,-500.0,0.00022599,2]
[313666727,1707558641132,-500.0,0.00022599,2]
[313666729,1707558641141,-500.0,0.00022599,2]
[313666731,1707558641150,-500.0,0.00022599,2]
[313666733,1707558641159,-500.0,0.00022599,2]
[313666734,1707558641168,-500.0,0.00022599,2]
[313666737,1707558641178,-500.0,0.00022599,2]
[313666738,1707558641187,-500.0,0.00022599,2]
[313666741,1707558641196,-500.0,0.00022599,2]
[313666742,1707558641206,-579.65077721,0.00022599,2]
[313666745,1707558641215,-503.09,0.00022599,7]
[313666747,1707558641225,-500.0,0.00022599,2]
[313666749,1707558641234,-500.0,0.00022599,2]
[313666751,1707558641243,-506.08,0.00022599,2]
[313666753,1707558641252,-500.0,0.00022599,2]
[313666755,1707558641262,-500.0,0.00022599,2]
[313666757,1707558641271,-500.0,0.00022599,2]
[313666759,1707558641280,-500.0,0.00022599,2]
[313666761,1707558641289,-500.0,0.00022599,2]
[313666763,1707558641298,-500.0,0.00022599,2]
[313666765,1707558641308,-500.0,0.00022599,2]
[313666767,1707558641317,-500.0,0.00022599,2]
[313666769,1707558641327,-500.0,0.00022599,2]
[313666771,1707558641336,-500.0,0.00022599,2]
[313666773,1707558641345,-500.0,0.00022599,2]
[313666775,1707558641354,-500.0,0.00022599,2]
[313666777,1707558641363,-500.0,0.00022599,2]
[313666779,1707558641373,-241.85150781,0.00022599,2]
[313666781,1707558641383,-500.0,0.00022599,2]
[313666783,1707558641392,-500.0,0.00022599,2]
[313666785,1707558641401,-580.96,0.00022599,2]
[313666787,1707558641411,-500.0,0.00022599,2]
[313666789,1707558641420,-651.42,0.00022599,2]
[313666790,1707558641429,-150.0,0.00022599,2]
[313666792,1707558641442,-500.0,0.00022599,2]
[313666794,1707558641452,-554.96507914,0.00022599,2]
[313666796,1707558641461,-500.0,0.00022599,2]
[313666798,1707558641470,-500.0,0.00022599,2]
[313666800,1707558641479,-500.0,0.00022599,2]
[313666802,1707558641489,-500.0,0.00022599,2]
[313666804,1707558641498,-500.0,0.00022599,2]
[313666806,1707558641507,-500.0,0.00022599,2]
[313666808,1707558641517,-500.0,0.00022599,2]
[313666810,1707558641527,-500.0,0.00022599,2]
[313666812,1707558641536,-500.0,0.00022599,2]
[313666814,1707558641545,-500.0,0.00022599,2]
[313666816,1707558641555,-500.0,0.00022599,2]
[313666818,1707558641565,-500.0,0.00022599,2]
[313666820,1707558641575,-500.0,0.00022599,2]
[313666823,1707558641585,-500.0,0.00022599,2]
[313666825,1707558641594,-500.0,0.00022599,2]
[313666826,1707558641604,-674.76,0.00022599,2]
[313666828,1707558641613,-540.99,0.00022599,2]
[313666831,1707558641623,-500.0,0.00022599,2]
[313666833,1707558641632,-500.0,0.00022599,2]
[313666835,1707558641641,-500.0,0.00022599,2]
[313666837,1707558641650,-500.0,0.00022599,2]
[313666839,1707558641659,-500.0,0.00022599,2]
[313666841,1707558641668,-500.0,0.00022599,2]
[313666843,1707558641677,-500.0,0.00022599,2]
[313666845,1707558641687,-887.23,0.00022599,2]
[313666847,1707558641695,-193.28352527,0.00022599,2]
[313666849,1707558641705,-500.0,0.00022599,2]
[313666851,1707558641713,-500.0,0.00022599,2]
[313666853,1707558641722,-500.0,0.00022599,2]
[313666855,1707558641731,-2347.43,0.00022599,2]
[313666857,1707558641740,-500.0,0.00022599,2]
[313666859,1707558641750,-4061.48,0.00022599,2]
[313666861,1707558641759,-500.0,0.00022599,2]
[313666863,1707558641768,-3384.59,0.00022599,2]
[313666865,1707558641777,-500.0,0.00022599,2]
[313666866,1707558641786,-500.0,0.00022599,2]
[313666868,1707558641795,-500.0,0.00022599,2]
[313666871,1707558641804,-4947.64,0.00022599,2]
[313666873,1707558641813,-2736.16,0.00022599,2]
[313666874,1707558641822,-500.0,0.00022599,2]
[313666876,1707558641831,-3502.76,0.00022599,2]
[313666879,1707558641841,-1319.09,0.00022599,2]
[313666880,1707558641850,-500.0,0.00022599,2]
[313666882,1707558641859,-5166.48,0.00022599,2]
[313666884,1707558641868,-500.0,0.00022599,2]
[313666886,1707558641877,-528.45,0.00022599,2]
[313666888,1707558641886,-500.0,0.00022599,2]
[313666890,1707558641895,-500.0,0.00022599,2]
[313666892,1707558641904,-500.0,0.00022599,2]
[313666893,1707558641913,-818.95,0.00022599,2]
[313666894,1707558641922,-500.0,0.00022599,2]
[313666895,1707558641931,-2164.8,0.00022599,2]
[313666896,1707558641940,-2408.99,0.00022599,2]
[313666897,1707558641949,-500.0,0.00022599,2]
[313666898,1707558641958,-1037.4,0.00022599,2]
[313666899,1707558641967,-500.0,0.00022599,2]
[313666900,1707558641976,-500.0,0.00022599,2]
[313666901,1707558641985,-2159.77,0.00022599,2]
[313666902,1707558641994,-500.0,0.00022599,2]
[313666903,1707558642003,-1373.37,0.00022599,2]
[313666904,1707558642012,-500.0,0.00022599,2]
[313666905,1707558642021,-500.0,0.00022599,2]
[313666906,1707558642030,-500.0,0.00022599,2]
[313666907,1707558642039,-500.0,0.00022599,2]
[313666908,1707558642049,-500.0,0.00022599,2]
[313666909,1707558642058,-500.0,0.00022599,2]
[313666910,1707558642067,-500.0,0.00022599,2]
[313666911,1707558642076,-500.0,0.00022599,2]
[313666912,1707558642085,-500.0,0.00022599,2]
[313666913,1707558642094,-542.83,0.00022599,2]
[313666914,1707558642103,-739.91,0.00022599,2]
[313666915,1707558642112,-500.0,0.00022599,2]
[313666916,1707558642121,-500.0,0.00022599,2]
[313666917,1707558642130,-800.19,0.00022599,2]
[313666918,1707558642139,-500.0,0.00022599,2]
[313666919,1707558642148,-500.0,0.00022599,2]
[313666920,1707558642157,-539.84,0.00022599,2]
[313666921,1707558642166,-2395.00846004,0.00022599,2]
[313666925,1707558642708,-199.27153996,0.00022599,2]
[313666926,1707558642717,-399.71146963,0.00022599,2]
[313666927,1707558642729,-100.28853037,0.00022599,2]
[313666928,1707558642739,-430.47095445,0.00022599,2]
[313666929,1707558642751,-69.52904555,0.00022599,2]
[313666930,1707558642760,-500.0,0.00022599,2]
[313666931,1707558642770,-431.92095445,0.00022599,2]
[313666932,1707558642782,-68.07904555,0.00022599,2]
[313666933,1707558642791,-1052.32095445,0.00022599,2]
[313666934,1707558642821,-1396.35904555,0.00022599,2]
[313666935,1707558642831,-500.0,0.00022599,2]
[313666936,1707558642840,-500.0,0.00022599,2]
[313666937,1707558642851,-500.0,0.00022599,2]
[313666938,1707558642860,-1363.6,0.00022599,2]
[313666939,1707558642869,-500.0,0.00022599,2]
[313666940,1707558642879,-1534.49,0.00022599,2]
[313666941,1707558642889,-1161.84114589,0.00022599,2]
[313666942,1707558642901,-148.42885411,0.00022599,2]
[313666944,1707558643125,-279.33400731,0.00022599,2]
[313666948,1707558643155,-220.66599269,0.00022599,2]
[313666949,1707558643165,-500.0,0.00022599,2]
[313666950,1707558643174,-500.0,0.00022599,2]
[313666951,1707558643183,-678.27,0.00022599,2]
[313666952,1707558643193,-28002.17027081,0.000226,2]
[313666953,1707558643209,-667.48092197,0.000226,2]
[313666954,1707558645726,-19273.35780722,0.000226,2]
[313666955,1707558645736,-15000.0,0.000226,2]
[313666956,1707558645745,-157.77,0.000226,2]
[313666957,1707558645755,-153.76064197,0.00022607,2]
[313666958,1707558645765,-1248.23001475,0.00022624,2]
[313666959,1707558645774,-10092.23348861,0.00022638,2]
[313666960,1707558645812,-4458.78059756,0.00022638,2]
[313667017,1707558657750,155.15573556,0.00022368,2]
[313667018,1707558658769,184.92,0.00019838,2]
[313667019,1707558659039,184.92,0.00022102,2]
[313667020,1707558674724,30830.06,0.0002175,2]
[313667021,1707558679737,155.0,0.00022368,2]
[313667022,1707558680748,165.07,0.00021743,2]
[313667023,1707558688096,7084.94,0.00021736,2]
[313667024,1707558692502,307.3,0.00021736,2]
[313667025,1707558706704,630.12,0.00021714,2]
[313667027,1707558712957,154.17873519,0.00022462,2]
[313667028,1707558721838,5214.50520179,0.00021736,2]
[313667029,1707558724197,211.0,0.0002237,2]
[313667030,1707558739904,1664.2994025,0.00021736,2]
[313667031,1707558748364,1000.0,0.000225,2]
[313667032,1707558757507,16000.0,0.0002218,2]
[313667033,1707558757922,16000.0,0.0002224,2]
[313667034,1707558758340,16000.0,0.000223,2]
[313667035,1707558758770,16000.0,0.0002236,2]
[313667036,1707558759170,16000.0,0.0002242,2]
[313667037,1707558759594,16000.0,0.0002248,2]
[313667038,1707558771801,16000.0,0.00022,2]
[313667039,1707558772793,16000.0,0.0002206,2]
[313667040,1707558773218,16000.0,0.0002212,2]
[313667041,1707558773623,16000.0,0.0002218,2]
[313667042,1707558774105,16000.0,0.0002224,2]
[313667043,1707558774500,16000.0,0.000223,2]
[313667044,1707558774918,16000.0,0.0002236,2]
[313667045,1707558775337,16000.0,0.0002242,2]
[313667046,1707558775749,16000.0,0.0002248,2]
[313667047,1707558789144,16000.0,0.00022,2]
[313667048,1707558789375,16000.0,0.0002206,2]
[313667049,1707558789790,16000.0,0.0002212,2]
[313667050,1707558816156,16000.0,0.00022,2]
[313667051,1707558816580,16000.0,0.0002206,2]
[313667052,1707558816989,16000.0,0.0002212,2]
[313667053,1707558817392,16000.0,0.0002218,2]
[313667054,1707558817834,16000.0,0.0002224,2]
[313667055,1707558818337,16000.0,0.000223,2]
[313667056,1707558818757,11813.02523052,0.0002236,2]
[313667057,1707558818781,4186.97476948,0.0002236,2]
[313667058,1707558819177,16000.0,0.0002242,2]
[313667059,1707558819579,16000.0,0.0002248,2]
[313667060,1707558834020,16000.0,0.00022,2]
[313667061,1707558834448,150.0,0.0002206,2]
[313667062,1707558834469,15850.0,0.0002206,2]
[313667063,1707558834904,150.0,0.0002212,2]
[313667064,1707558834924,150.0,0.0002212,2]
[313667065,1707558834944,150.0,0.0002212,2]
[313667066,1707558834963,150.0,0.0002212,2]
[313667067,1707558834983,150.0,0.0002212,2]
[313667068,1707558835003,15250.0,0.0002212,2]
[313667069,1707558835538,150.0,0.0002218,2]
[313667070,1707558835559,150.0,0.0002218,2]
[313667071,1707558835583,150.0,0.0002218,2]
[313667072,1707558835603,150.0,0.0002218,2]
[313667073,1707558835624,150.0,0.0002218,2]
[313667074,1707558835644,150.0,0.0002218,2]
[313667075,1707558835665,150.0,0.0002218,2]
[313667076,1707558835687,14950.0,0.0002218,2]
[313667077,1707558836071,150.0,0.0002224,2]
[313667078,1707558836092,150.0,0.0002224,2]
[313667079,1707558836112,150.0,0.0002224,2]
[313667080,1707558836132,150.0,0.0002224,2]
[313667081,1707558836151,178.75366394,0.0002224,2]
[313667082,1707558836172,150.0,0.0002224,2]
[313667083,1707558836191,150.0,0.0002224,2]
[313667084,1707558836211,150.0,0.0002224,2]
[313667085,1707558836231,14771.24633606,0.0002224,2]
[313667086,1707558836277,14110.54,0.000223,2]
[313667087,1707558842656,167.01,0.00022304,2]
[313667088,1707558855552,159.23,0.00021817,2]
[313667089,1707558855747,159.23,0.00022044,2]
[313667090,1707558856319,159.23,0.00022271,2]
[313667091,1707558856384,159.23,0.00022499,2]
[313667092,1707558871482,89728.142,0.000225,2]
[313667093,1707558884018,2000.0,0.00021641,2]
[313667094,1707558988642,4180.74,0.00021622,2]
[313667095,1707558989450,2221.232,0.00022461,2]
[313667096,1707558996321,966.7554,0.00022499,2]
[313667097,1707558998550,151.4,0.00021618,2]
[313667098,1707559007829,366.37165495,0.000225,2]
[313667099,1707559020753,4859.3643,0.00022461,2]
[313667100,1707559050884,19109.9488,0.00022461,2]
[313667101,1707559056266,16000.0,0.00022,2]
[313667102,1707559056949,16000.0,0.0002206,2]
[313667103,1707559057654,14000.0,0.0002212,2]
[313667104,1707559079195,250.0,0.00021609,2]
[313667105,1707559087298,16000.0,0.00022,2]
[313667106,1707559087757,4000.0,0.0002206,2]
[313667107,1707559099500,527.33,0.00021609,2]
[313667108,1707559102115,200.0,0.00021609,2]
[313667109,1707559113036,23900.0,0.00021605,2]
[313667110,1707559119677,213.48,0.00019688,2]
[313667111,1707559120097,213.48,0.00021951,2]
[313667112,1707559126957,490.12,0.00021605,2]
[313667113,1707559161890,495.9,0.00021609,2]
[313667114,1707559206216,625.06,0.00022,2]
[313667115,1707559210672,163.1,0.00021603,2]
[313667116,1707559282103,2500.0,0.00022496,2]
[313667117,1707559312941,166.43,0.00022238,2]
[313667118,1707559335308,150.0,0.0002192,2]
[313667119,1707559345861,159.23,0.00021744,2]
[313667120,1707559370124,500.0,0.00022496,2]
[313667121,1707559388569,1226.09859029,0.00022434,2]
[313667122,1707559418877,566.0855557,0.000225,2]
[313667123,1707559469216,320.57519802,0.00022498,2]
[313667124,1707559563715,154.17873515,0.00022404,2]
[313667125,1707559568695,154.17873515,0.00022491,2]
[313667126,1707559578827,192.13,0.00019677,2]
[313667127,1707559578980,192.13,0.00021941,2]
[313667128,1707559610403,408.43,0.00021583,2]
[313667140,1707559658045,603.28,0.00021583,2]
[313667154,1707559821875,15000.0,0.00022,2]
[313667155,1707559822285,15000.0,0.00022038,2]
[313667156,1707559822737,15000.0,0.00022075,2]
[313667157,1707559823132,15000.0,0.00022113,2]
[313667158,1707559823587,15000.0,0.0002215,2]
[313667159,1707559823994,15000.0,0.00022188,2]
[313667160,1707559824411,15000.0,0.00022225,2]
[313667161,1707559824838,15000.0,0.00022263,2]
[313667162,1707559825272,15000.0,0.000223,2]
[313667163,1707559825701,15000.0,0.00022338,2]
[313667164,1707559826133,15000.0,0.00022375,2]
[313667165,1707559826771,15000.0,0.00022413,2]
[313667166,1707559827586,15000.0,0.00022488,2]
[313667180,1707559831932,-631.9829174,0.00022502,2]
[313667181,1707559831941,-1734.24640322,0.00022503,5]
[313667182,1707559831954,-2356.88543763,0.00022503,5]
[313667183,1707559831965,-3050.43580985,0.00022503,5]
[313667184,1707559831974,-2705.557778,0.00022504,2]
[313667185,1707559831982,-1825.36879353,0.00022507,2]
[313667186,1707559831991,-15000.0,0.00022525,2]
[313667187,1707559832000,-1711.80569067,0.0002253,2]
[313667188,1707559832009,-864.35236612,0.00022539,2]
[313667189,1707559832018,-4521.70738246,0.0002254,2]
[313667190,1707559832033,-1400.0,0.0002254,2]
[313667191,1707559832048,-274.09847598,0.0002254,2]
[313667192,1707559832063,-435.34484087,0.0002254,2]
[313667193,1707559832161,-2185.83021609,0.0002254,2]
[313667194,1707559832172,-562.52650156,0.0002254,2]
[313667195,1707559837105,15000.0,0.00022,2]
[313667196,1707559837547,15000.0,0.00022038,2]
[313667198,1707559837919,-333.42,0.0002254,2]
[313667200,1707559837971,15000.0,0.00022075,2]
[313667201,1707559837985,-6287.07258304,0.0002254,2]
[313667202,1707559837995,-14373.65345698,0.0002254,2]
[313667203,1707559838006,-1626.34654302,0.0002254,2]
[313667204,1707559838016,-16000.0,0.0002254,2]
[313667205,1707559838025,-1988.08654151,0.00022541,2]
[313667206,1707559838034,-543.06531547,0.00022542,2]
[313667207,1707559838046,-312.51848453,0.00022542,2]
[313667208,1707559838055,-383.85658561,0.00022548,2]
[313667209,1707559838064,-79.44899827,0.00022557,2]
[313667210,1707559838076,-793.18800703,0.00022557,2]
[313667211,1707559838087,-3717.33898295,0.00022557,2]
[313667212,1707559838099,-410.02401175,0.00022557,2]
[313667213,1707559838108,-168.13605804,0.00022557,2]
[313667214,1707559838118,-278.53,0.00022557,2]
[313667215,1707559838128,-1060.82869803,0.00022559,2]
[313667216,1707559838137,-719.68,0.0002256,2]
[313667217,1707559838146,-253.98003832,0.00022561,2]
[313667218,1707559838172,-469.61996168,0.00022561,2]
[313667219,1707559838181,-710.42,0.00022561,2]
[313667220,1707559838191,-5929.53347551,0.00022561,2]
[313667221,1707559838202,-13892.41094839,0.00022561,2]
[313667222,1707559838213,-4203.73320046,0.00022561,2]
[313667223,1707559838225,-772.60300918,0.00022561,2]
[313667224,1707559838244,-1079.94887828,0.00022561,2]
[313667225,1707559838278,-443.83778674,0.00022561,2]
[313667226,1707559838290,-651.59,0.00022561,2]
[313667294,1707559838891,-534.94030156,0.00022561,2]
[313667298,1707559838917,15000.0,0.00022113,2]
[313667344,1707559839327,15000.0,0.0002215,2]
[313667399,1707559839757,14536.88134655,0.00022188,2]
[313667402,1707559839783,463.11865345,0.00022188,2]
[313667448,1707559840188,15000.0,0.00022225,2]
[313667507,1707559840646,15000.0,0.00022263,2]
[313667537,1707559841051,15000.0,0.000223,2]
[313667584,1707559841467,15000.0,0.00022338,2]
[313667595,1707559841572,-7142.91103457,0.00022561,2]
[313667602,1707559841627,-973.34487828,0.00022561,2]
[313667630,1707559841880,15000.0,0.00022375,2]
[313667697,1707559842911,-46617.39613701,0.00022561,2]
[313667698,1707559842923,-2529.99996,0.00022561,2]
[313667699,1707559842934,-373.45767937,0.00022561,2]
[313667700,1707559842970,-943.24512146,0.00022561,2]
[313667701,1707559842982,-1909.90824921,0.00022561,2]
[313667702,1707559842994,-1051.547,0.00022561,2]
[313667703,1707559843005,-1036.696501,0.00022561,2]
[313667704,1707559843017,-22793.72873656,0.00022561,2]
[313667705,1707559843026,-725.59,0.00022562,2]
[313667706,1707559843035,-15000.0,0.00022563,2]
[313667707,1707559843044,-154.17873515,0.00022578,2]
[313667708,1707559843052,-150.0,0.00022578,2]
[313667709,1707559843062,-150.0,0.00022578,2]
[313667710,1707559843070,-150.0,0.00022579,2]
[313667711,1707559843079,-150.0,0.00022586,2]
[313667712,1707559843088,-150.0,0.00022587,2]
[313667713,1707559843098,-208.19913563,0.00022589,2]
[313667714,1707559843108,-150.0,0.00022589,2]
[313667715,1707559843118,-1988.08654149,0.00022592,2]
[313667716,1707559843127,-300.0,0.00022594,2]
[313667717,1707559843137,-500.0,0.00022594,2]
[313667718,1707559843146,-608.09,0.00022594,2]
[313667719,1707559843155,-655.03,0.00022594,2]
[313667720,1707559843163,-684.8,0.00022594,2]
[313667721,1707559843173,-505.95,0.00022594,2]
[313667722,1707559843182,-2444.05,0.00022594,2]
[313667723,1707559843191,-881.49,0.00022594,2]
[313667724,1707559843200,-500.0,0.00022594,2]
[313667725,1707559843209,-574.7,0.00022594,2]
[313667726,1707559843218,-2292.48,0.00022594,2]
[313667727,1707559843227,-538.39,0.00022594,2]
[313667728,1707559843237,-2185.23,0.00022594,2]
[313667729,1707559843246,-548.9,0.00022594,2]
[313667730,1707559843255,-799.41,0.00022594,2]
[313667731,1707559843264,-735.44,0.00022595,2]
[313667733,1707559843273,-500.0,0.00022595,2]
[313667735,1707559843283,-500.0,0.00022595,2]
[313667737,1707559843293,-500.0,0.00022595,2]
[313667738,1707559843303,-500.0,0.00022595,2]
[313667739,1707559843312,-339.03345458,0.00022595,2]
[313667740,1707559843322,-526.57223015,0.00022595,2]
[313667741,1707559843333,-500.0,0.00022595,2]
[313667742,1707559843343,-500.0,0.00022595,2]
[313667743,1707559843352,-500.0,0.00022595,2]
[313667744,1707559843362,-500.0,0.00022595,2]
[313667745,1707559843375,-500.0,0.00022595,2]
[313667746,1707559843385,-500.0,0.00022595,2]
[313667747,1707559843396,-500.0,0.00022595,2]
[313667748,1707559843406,-500.0,0.00022595,2]
[313667749,1707559843417,-1216.64,0.00022595,2]
[313667750,1707559843426,-484.25263503,0.00022595,2]
[313667751,1707559843436,-500.0,0.00022595,2]
[313667752,1707559843446,-500.0,0.00022595,2]
[313667753,1707559843455,-500.0,0.00022595,2]
[313667754,1707559843464,-500.0,0.00022595,2]
[313667755,1707559843475,-254.66584658,0.00022595,2]
[313667756,1707559843484,-500.0,0.00022595,2]
[313667757,1707559843493,-500.0,0.00022595,2]
[313667758,1707559843502,-500.0,0.00022595,2]
[313667759,1707559843512,-500.0,0.00022595,2]
[313667760,1707559843521,-500.33394262,0.00022595,2]
[313667761,1707559843531,-500.0,0.00022595,2]
[313667762,1707559843540,-500.0,0.00022595,2]
[313667763,1707559843549,-500.0,0.00022595,2]
[313667764,1707559843558,-500.0,0.00022595,2]
[313667765,1707559843568,-500.0,0.00022595,2]
[313667766,1707559843578,-500.0,0.00022595,2]
[313667767,1707559843587,-500.0,0.00022595,2]
[313667768,1707559843596,-500.0,0.00022595,2]
[313667769,1707559843605,-640.25172336,0.00022595,2]
[313667770,1707559843614,-500.0,0.00022595,2]
[313667771,1707559843623,-500.0,0.00022595,2]
[313667772,1707559843633,-500.0,0.00022595,2]
[313667773,1707559843643,-500.0,0.00022595,2]
[313667774,1707559843652,-456.85764935,0.00022595,2]
[313667775,1707559843662,-554.9063028,0.00022595,2]
[313667776,1707559843672,-736.44,0.00022595,2]
[313667777,1707559843681,-500.0,0.00022595,2]
[313667778,1707559843690,-150.0,0.00022595,2]
[313667779,1707559843700,-1412.6065667,0.00022595,2]
[313667780,1707559843713,-837.93466786,0.00022595,2]
[313667781,1707559843730,-1122.48876544,0.00022595,2]
[313667782,1707559843739,-1026.03,0.00022595,2]
[313667783,1707559843748,-2908.81,0.00022595,2]
[313667784,1707559843757,-597.0,0.00022595,2]
[313667785,1707559843766,-500.0,0.00022595,2]
[313667786,1707559843781,-500.0,0.00022595,2]
[313667787,1707559843790,-500.0,0.00022595,2]
[313667788,1707559843799,-2386.71,0.00022595,2]
[313667789,1707559843808,-500.0,0.00022595,2]
[313667790,1707559843818,-19226.35,0.00022595,2]
[313667791,1707559843827,-1305.1,0.00022595,2]
[313667792,1707559843836,-398.06739318,0.00022595,2]
[313667793,1707559843845,-500.0,0.00022595,2]
[313667794,1707559843855,-705.94,0.00022595,2]
[313667795,1707559843865,-500.0,0.00022595,2]
[313667796,1707559843873,-500.0,0.00022595,2]
[313667797,1707559843882,-9900.77,0.00022595,2]
[313667798,1707559843892,-500.0,0.00022595,2]
[313667799,1707559843900,-500.0,0.00022595,2]
[313667800,1707559843909,-270.79188448,0.00022595,2]
[313667801,1707559843918,-500.0,0.00022595,2]
[313667802,1707559843928,-1859.77,0.00022595,2]
[313667803,1707559843937,-500.0,0.00022595,2]
[313667804,1707559843946,-500.0,0.00022595,2]
[313667805,1707559843955,-7242.06,0.00022595,2]
[313667806,1707559843964,-536.32,0.00022595,2]
[313667807,1707559843973,-500.0,0.00022595,2]
[313667808,1707559843982,-3848.88,0.00022595,2]
[313667809,1707559843991,-1786.46,0.00022595,2]
[313667810,1707559844000,-704.74,0.00022595,2]
[313667811,1707559844009,-242.87762131,0.00022595,2]
[313667812,1707559844018,-500.0,0.00022595,2]
[313667813,1707559844027,-500.0,0.00022595,2]
[313667814,1707559844036,-646.92,0.00022595,2]
[313667815,1707559844044,-3459.58,0.00022595,2]
[313667816,1707559844054,-1832.61,0.00022595,2]
[313667817,1707559844063,-631.38,0.00022595,2]
[313667818,1707559844072,-281.66698633,0.00022595,2]
[313667819,1707559844081,-1158.72,0.00022595,2]
[313667820,1707559844090,-500.0,0.00022595,2]
[313667821,1707559844100,-500.0,0.00022595,2]
[313667822,1707559844109,-557.0805309,0.00022595,2]
[313667823,1707559844118,-7052.32,0.00022595,2]
[313667824,1707559844128,-567.29,0.00022595,2]
[313667825,1707559844138,-14283.34,0.00022595,2]
[313667826,1707559844147,-500.0,0.00022595,2]
[313667827,1707559844157,-562.04,0.00022595,2]
[313667828,1707559844167,-500.0,0.00022595,2]
[313667829,1707559844175,-616.12,0.00022595,2]
[313667830,1707559844185,-500.0,0.00022595,2]
[313667831,1707559844194,-931.72,0.00022595,2]
[313667832,1707559844203,-526.56,0.00022595,2]
[313667833,1707559844212,-500.0,0.00022595,2]
[313667834,1707559844221,-500.0,0.00022595,2]
[313667835,1707559844230,-500.0,0.00022595,2]
[313667836,1707559844239,-603.21286648,0.00022595,2]
[313667837,1707559844248,-500.0,0.00022595,2]
[313667838,1707559844257,-981.22,0.00022595,2]
[313667839,1707559844267,-2249.62,0.00022595,2]
[313667840,1707559844276,-2935.48,0.00022595,2]
[313667841,1707559844286,-555.21443376,0.00022595,2]
[313667842,1707559844295,-2339.0,0.00022595,2]
[313667843,1707559844304,-3892.25,0.00022595,2]
[313667844,1707559844313,-631.24,0.00022595,2]
[313667845,1707559844322,-846.3,0.00022595,2]
[313667846,1707559844331,-3243.57,0.00022595,2]
[313667847,1707559844340,-6553.82,0.00022595,2]
[313667848,1707559844349,-4741.48,0.00022595,2]
[313667849,1707559844359,-55555.0,0.00022596,2]
[313667850,1707559844368,-150.0,0.00022596,2]
[313667851,1707559844378,-150.0,0.00022596,2]
[313667852,1707559844387,-150.0,0.00022597,2]
[313667853,1707559844396,-263.66808401,0.00022598,2]
[313667854,1707559844404,-500.0,0.00022598,2]
[313667855,1707559844413,-500.0,0.00022598,2]
[313667856,1707559844422,-500.0,0.00022598,2]
[313667857,1707559844431,-500.0,0.00022598,2]
[313667858,1707559844440,-500.0,0.00022598,2]
[313667859,1707559844450,-437.90071097,0.00022598,2]
[313667860,1707559844459,-500.0,0.00022598,2]
[313667861,1707559844468,-363.67252069,0.00022598,2]
[313667862,1707559844478,-500.0,0.00022598,2]
[313667863,1707559844487,-354.71558588,0.00022598,2]
[313667864,1707559844496,-500.0,0.00022598,2]
[313667865,1707559844506,-500.0,0.00022598,2]
[313667866,1707559844515,-500.0,0.00022598,2]
[313667867,1707559844524,-355.89848949,0.00022598,2]
[313667868,1707559844534,-500.0,0.00022598,2]
[313667869,1707559844543,-500.0,0.00022598,2]
[313667870,1707559844552,-500.0,0.00022598,7]
[313667871,1707559844562,-500.0,0.00022598,2]